bitfinex-derivatives/quotes_BTCF0:USTF0_20241009
["timestamp","ask_amount","ask_price","bid_price","bid_amount"]
[1728481198912,0.11192424,61978.0,61977.0,0.08315392]
[1728481199608,0.11192424,61978.0,61977.0,0.09515392]
[1728481200003,0.11192424,61978.0,61977.0,0.10415392]
[1728481200607,0.080734,61978.0,61977.0,0.10415392]
[1728481200807,0.11192382,61978.0,61977.0,0.10115392]
[1728481201104,0.03118982,61978.0,61977.0,0.09815392]
[1728481201309,0.13118982,61978.0,61977.0,0.09815392]
[1728481201628,0.03118982,61978.0,61977.0,0.09815392]
[1728481201811,0.11192382,61978.0,61977.0,0.09815392]
[1728481202113,0.3608,61985.0,61977.0,0.29741992]
[1728481202309,0.3608,61985.0,61984.0,0.080726]
[1728481202507,0.39198868,61985.0,61984.0,0.080726]
[1728481202808,0.58271368,61985.0,61984.0,0.080726]
[1728481203007,0.080733,61982.0,61981.0,0.080729]
[1728481203209,0.22192168,61982.0,61981.0,0.080729]
[1728481203508,0.11192168,61982.0,61981.0,0.080729]
[1728481203732,0.03118868,61982.0,61981.0,0.441529]
[1728481204115,0.03118868,61982.0,61981.0,0.443529]
[1728481205116,0.128921,61988.0,61987.0,0.080722]
[1728481205307,0.16010591,61988.0,61987.0,0.721522]
[1728481205613,0.16010591,61988.0,61987.0,0.441522]
[1728481206031,0.128921,61988.0,61987.0,0.441522]
[1728481207216,0.228921,61988.0,61987.0,0.441522]
[1728481207809,0.229921,61988.0,61982.0,0.3608]
[1728481208033,0.080727,61983.0,61982.0,0.441528]
[1728481208316,0.180727,61983.0,61982.0,0.441528]
[1728481209321,0.180727,61983.0,61982.0,0.448528]
[1728481210711,0.180727,61983.0,61982.0,0.452528]
[1728481211412,0.1,61983.0,61982.0,0.452528]
[1728481211622,0.840711,61996.0,61992.0,0.080715]
[1728481211623,0.080719,61993.0,61992.0,0.080715]
[1728481211811,0.200719,61993.0,61992.0,0.080715]
[1728481212013,0.080721,61990.0,61989.0,0.080719]
[1728481212214,0.200721,61990.0,61989.0,0.080719]
[1728481212520,0.080721,61988.0,61987.0,0.441519]
[1728481212722,0.200721,61988.0,61987.0,0.441519]
[1728481213130,0.080727,61983.0,61982.0,0.445528]
[1728481213419,0.200727,61983.0,61982.0,0.445528]
[1728481213720,0.200727,61983.0,61982.0,0.441528]
[1728481214519,0.200727,61983.0,61982.0,0.443528]
[1728481215117,0.200727,61983.0,61982.0,0.082728]
[1728481215315,0.200727,61983.0,61982.0,0.087728]
[1728481217113,0.12,61983.0,61982.0,0.277728]
[1728481217918,0.12,61983.0,61982.0,0.087728]
[1728481218105,0.200727,61983.0,61982.0,0.087728]
[1728481218515,0.12,61983.0,61982.0,0.087728]
[1728481219245,0.19,61997.0,61982.0,0.087728]
[1728481219246,0.080715,61993.0,61988.0,0.080721]
[1728481219437,0.080715,61993.0,61992.0,0.080713]
[1728481220110,0.3276,61998.0,61997.0,0.080709]
[1728481220341,0.3608,62010.0,61997.0,0.19]
[1728481220531,0.080698,62007.0,62006.0,0.080696]
[1728481220815,0.11187808,62007.0,62006.0,0.080696]
[1728481221016,0.21931307,62007.0,62006.0,0.080696]
[1728481221230,0.25883945,62007.0,62006.0,0.080696]
[1728481222012,0.12024964,62007.0,62006.0,0.080696]
[1728481222322,0.19450005,62007.0,62006.0,1.164536]
[1728481222643,0.12024964,62016.0,62015.0,0.080686]
[1728481222813,0.12024964,62016.0,62015.0,0.631486]
[1728481223015,0.07070646,62016.0,62015.0,0.631486]
[1728481223223,0.03118008,62016.0,62015.0,0.631486]
[1728481223526,0.03116824,62016.0,62015.0,0.5508]
[1728481223739,0.080682,62018.0,62016.0,0.080683]
[1728481223926,0.07068389,62017.0,62016.0,0.080683]
[1728481224230,0.03116934,62017.0,62016.0,0.270683]
[1728481224923,0.11185234,62017.0,62016.0,0.270683]
[1728481225127,0.11185203,62017.0,62016.0,0.270683]
[1728481225311,0.03116903,62017.0,62016.0,0.270683]
[1728481226020,0.080683,62018.0,62016.0,0.270683]
[1728481226229,0.080683,62017.0,62016.0,0.270683]
[1728481226638,0.081683,62017.0,62016.0,0.270683]
[1728481227129,0.081683,62017.0,62015.0,0.3608]
[1728481227130,0.001,62017.0,62015.0,0.3608]
[1728481227334,0.080684,62016.0,62015.0,0.3608]
[1728481227727,0.080691,62011.0,62010.0,0.457632]
[1728481228524,0.080688,62015.0,62014.0,0.080684]
[1728481228723,0.080688,62015.0,62014.0,0.270684]
[1728481229031,0.08069,62012.0,62011.0,0.19]
[1728481229225,0.08069,62012.0,62011.0,0.270691]
[1728481231121,0.08069,62012.0,62011.0,0.272691]
[1728481231317,0.080685,62016.0,62015.0,0.080686]
[1728481231728,0.080676,62023.0,62011.0,0.197]
[1728481231925,0.08069,62015.0,62014.0,0.080687]
[1728481232120,0.06402346,62025.0,62014.0,0.19]
[1728481232121,0.047,62025.0,62014.0,0.19]
[1728481232334,0.080678,62021.0,62020.0,0.19]
[1728481232521,0.180678,62021.0,62020.0,0.19]
[1728481232937,0.180678,62021.0,62020.0,0.270679]
[1728481233614,0.180678,62021.0,62020.0,0.080679]
[1728481234335,0.181678,62021.0,62020.0,0.001]
[1728481239740,0.181678,62021.0,62020.0,0.271679]
[1728481240239,0.101,62021.0,62020.0,0.271679]
[1728481240448,0.001,62021.0,62020.0,0.271679]
[1728481242034,0.081678,62021.0,62020.0,0.081679]
[1728481242558,0.081678,62021.0,62020.0,0.001]
[1728481242559,0.181678,62021.0,62020.0,0.001]
[1728481243286,0.25235519,62021.0,62020.0,0.081679]
[1728481243735,0.30188357,62021.0,62020.0,0.001]
[1728481244030,0.3018908,62021.0,62020.0,0.001]
[1728481244228,0.15236249,62021.0,62020.0,0.191]
[1728481244424,0.15236249,62021.0,62020.0,0.271679]
[1728481244938,0.07168449,62021.0,62020.0,0.271679]
[1728481246828,0.15236249,62021.0,62020.0,0.271679]
[1728481247336,0.15236249,62021.0,62020.0,0.081679]
[1728481247522,0.20189027,62021.0,62020.0,0.081679]
[1728481247722,0.12121227,62021.0,62020.0,0.081679]
[1728481247935,0.20189027,62021.0,62020.0,0.081679]
[1728481248143,0.20188972,62021.0,62020.0,0.081679]
[1728481248335,0.34609713,62021.0,62020.0,0.081679]
[1728481248544,0.20188972,62021.0,62020.0,0.081679]
[1728481248829,0.44609713,62021.0,62020.0,0.001]
[1728481249032,0.35976452,62021.0,62020.0,0.001]
[1728481249831,0.35976452,62021.0,62020.0,0.081679]
[1728481251135,0.2128476,62021.0,62020.0,0.081679]
[1728481251332,0.1128476,62021.0,62020.0,0.081679]
[1728481252646,0.0321696,62021.0,62020.0,0.081679]
[1728481253236,0.1128476,62021.0,62020.0,0.081679]
[1728481253438,0.311,62021.0,62016.0,0.3608]
[1728481253638,0.12906777,62020.0,62019.0,0.08068]
[1728481253933,0.12906777,62020.0,62019.0,0.27068]
[1728481253934,0.03116777,62020.0,62019.0,0.27068]
[1728481254237,0.0498,62028.0,62019.0,0.67372]
[1728481254461,0.0498,62028.0,62017.0,0.08068]
[1728481254462,0.080666,62032.0,62031.0,0.080664]
[1728481254636,0.080666,62032.0,62031.0,0.270664]
[1728481255239,0.0498,62038.0,62035.0,0.08066]
[1728481255449,0.0498,62038.0,62037.0,0.19]
[1728481255670,0.130456,62038.0,62037.0,0.270657]
[1728481255863,0.0498,62038.0,62037.0,0.270657]
[1728481256282,0.3276,62049.0,62037.0,0.270657]
[1728481256283,0.0482,62045.0,62044.0,0.080648]
[1728481256472,0.0482,62045.0,62044.0,0.631448]
[1728481256473,0.16835103,62045.0,62044.0,0.631448]
[1728481256648,0.080647,62045.0,62044.0,0.631448]
[1728481257035,0.080643,62049.0,62048.0,0.080642]
[1728481257235,0.080643,62049.0,62048.0,0.270642]
[1728481257676,0.080639,62052.0,62051.0,0.080638]
[1728481257949,0.080639,62052.0,62051.0,0.631438]
[1728481258139,0.12014207,62052.0,62051.0,0.631438]
[1728481258348,0.03950307,62052.0,62051.0,0.631438]
[1728481258853,0.12014107,62052.0,62051.0,0.3618]
[1728481259361,0.12014107,62052.0,62051.0,0.632439]
[1728481260241,0.12014107,62052.0,62051.0,0.442439]
[1728481260438,0.12014107,62052.0,62051.0,0.632439]
[1728481260648,0.080638,62052.0,62051.0,0.632439]
[1728481261034,0.080638,62052.0,62051.0,0.633439]
[1728481261939,0.080638,62052.0,62051.0,0.443439]
[1728481262242,0.080638,62052.0,62051.0,0.3628]
[1728481262471,0.12013236,62052.0,62051.0,0.3628]
[1728481263043,0.03949436,62052.0,62051.0,0.633439]
[1728481263250,0.12013236,62052.0,62051.0,0.633439]
[1728481263452,0.08899991,62052.0,62051.0,0.5528]
[1728481263671,0.08899991,62052.0,62051.0,0.633439]
[1728481263672,0.03949527,62052.0,62051.0,0.633439]
[1728481263955,0.441423,62064.0,62051.0,0.633439]
[1728481263956,0.14505698,62060.0,62059.0,0.080628]
[1728481264368,0.0706459,62060.0,62059.0,0.924828]
[1728481264554,0.080615,62070.0,62069.0,0.080615]
[1728481264777,0.12010256,62070.0,62069.0,0.270615]
[1728481264956,0.03948756,62070.0,62069.0,0.631415]
[1728481265369,0.22565398,62083.0,62080.0,0.0806]
[1728481265679,0.14505698,62084.0,62082.0,0.19]
[1728481265853,0.23403612,62083.0,62082.0,0.19]
[1728481266045,0.08897914,62083.0,62082.0,0.19]
[1728481266264,0.52197443,62089.0,62082.0,0.19]
[1728481266265,0.3608,62089.0,62082.0,0.19]
[1728481266453,0.3608,62089.0,62086.0,0.19]
[1728481266454,0.080592,62087.0,62086.0,0.19]
[1728481266647,0.080596,62084.0,62083.0,0.19]
[1728481267645,0.080597,62083.0,62082.0,0.001]
[1728481268353,0.0806,62081.0,62078.0,0.01786518]
[1728481268546,0.080602,62079.0,62078.0,0.01786518]
[1728481268736,0.200602,62079.0,62078.0,0.01786518]
[1728481268951,0.561402,62079.0,62071.0,0.01614]
[1728481269157,0.080612,62072.0,62071.0,0.01614]
[1728481269349,0.200612,62072.0,62071.0,0.01614]
[1728481269541,0.080607,62076.0,62071.0,0.20614]
[1728481269745,0.080607,62076.0,62075.0,0.5508]
[1728481271445,0.081607,62076.0,62075.0,0.5508]
[1728481272253,0.080607,62076.0,62075.0,0.5548]
[1728481272440,0.080607,62076.0,62075.0,0.194]
[1728481272647,0.080607,62076.0,62075.0,0.004]
[1728481273556,0.270607,62076.0,62075.0,0.011]
[1728481273947,0.270607,62076.0,62075.0,0.004]
[1728481274149,0.270607,62076.0,62075.0,0.007]
[1728481274349,0.380607,62076.0,62075.0,0.011]
[1728481274603,0.080612,62072.0,62071.0,0.01614]
[1728481274767,0.741412,62072.0,62071.0,0.01614]
[1728481274953,0.080617,62068.0,62056.0,0.3646]
[1728481275150,0.080625,62062.0,62056.0,0.37816352]
[1728481275352,0.080631,62057.0,62056.0,0.37816352]
[1728481275654,0.270631,62057.0,62056.0,0.3608]
[1728481275868,0.080632,62056.0,62055.0,0.01612]
[1728481276299,0.180632,62056.0,62055.0,0.01612]
[1728481277453,0.080644,62047.0,62042.0,0.3608]
[1728481278067,0.190644,62047.0,62038.0,0.01613]
[1728481278260,0.080654,62039.0,62038.0,0.01613]
[1728481278472,0.270654,62039.0,62038.0,0.01613]
[1728481279473,0.080661,62034.0,62033.0,1e-08]
[1728481279805,0.08068,62019.0,62018.0,0.0038]
[1728481280070,0.080682,62018.0,62017.0,0.01613]
[1728481280458,0.080677,62022.0,62017.0,0.01613]
[1728481280646,0.080682,62018.0,62017.0,0.01613]
[1728481281758,0.080682,62018.0,62017.0,0.02613]
[1728481281960,0.080682,62018.0,62017.0,0.03713]
[1728481282658,0.360682,62018.0,62017.0,0.03713]
[1728481283261,0.360682,62018.0,62017.0,0.02713]
[1728481283451,0.360682,62018.0,62017.0,0.04113]
[1728481283452,0.361682,62018.0,62017.0,0.04113]
[1728481283648,0.081682,62018.0,62017.0,0.04113]
[1728481284751,0.001,62018.0,62017.0,0.04113]
[1728481284970,0.080672,62026.0,62018.0,0.080681]
[1728481285155,0.080672,62026.0,62025.0,0.3608]
[1728481286280,0.28,62027.0,62018.0,0.004]
[1728481286478,0.36068,62019.0,62018.0,0.004]
[1728481287555,0.08068,62019.0,62018.0,0.018]
[1728481288155,0.18068,62019.0,62018.0,0.018]
[1728481288754,0.08068,62019.0,62018.0,0.014]
[1728481289864,0.08068,62019.0,62018.0,0.024]
[1728481290451,0.08068,62019.0,62018.0,0.3848]
[1728481290954,0.08068,62019.0,62018.0,0.465482]
[1728481291654,0.08068,62019.0,62018.0,0.465481]
[1728481292260,0.08068,62019.0,62018.0,0.3848]
[1728481292655,0.08068,62019.0,62018.0,0.024]
[1728481292656,0.20068,62019.0,62018.0,0.024]
[1728481297167,0.20068,62019.0,62018.0,0.01]
[1728481297471,0.20068,62019.0,62018.0,0.013]
[1728481297859,0.20168,62019.0,62018.0,0.01]
[1728481298357,0.20168,62019.0,62018.0,0.001]
[1728481299068,0.20168,62019.0,62017.0,0.01613]
[1728481299069,0.080682,62018.0,62017.0,0.01613]
[1728481299264,0.831482,62018.0,62017.0,0.01613]
[1728481299679,0.831482,62018.0,61983.0,0.09607351]
[1728481299680,0.080692,62010.0,61994.0,0.0044]
[1728481299861,0.441497,62006.0,61996.0,0.08071]
[1728481300197,0.441497,62006.0,61992.0,0.0038]
[1728481300198,0.080708,61998.0,61997.0,0.01614]
[1728481300401,0.360708,61998.0,61997.0,0.01614]
[1728481300967,0.480708,61998.0,61997.0,0.01614]
[1728481302259,0.201708,61998.0,61997.0,0.01614]
[1728481302675,0.391708,61998.0,61997.0,0.01614]
[1728481303561,0.875588,61998.0,61997.0,0.01714]
[1728481303781,0.882588,61998.0,61997.0,0.01714]
[1728481303968,0.398708,61998.0,61997.0,0.01714]
[1728481304669,0.882588,61998.0,61997.0,0.01714]
[1728481305475,0.882588,61998.0,61997.0,0.001]
[1728481305892,0.080714,61993.0,61992.0,0.04808105]
[1728481306086,0.080714,61993.0,61984.0,0.00241959]
[1728481306087,0.080718,61990.0,61989.0,0.04808105]
[1728481306397,0.080721,61988.0,61986.0,0.04808105]
[1728481306683,0.631522,61987.0,61986.0,0.04808105]
[1728481306970,0.080725,61985.0,61984.0,0.06646922]
[1728481307168,0.080725,61985.0,61984.0,0.00241959]
[1728481307565,0.180725,61985.0,61984.0,0.00241959]
[1728481309078,0.182725,61985.0,61984.0,0.00241959]
[1728481309577,0.183725,61985.0,61984.0,0.00741959]
[1728481309897,0.3608,61993.0,61984.0,0.08814559]
[1728481310096,0.080717,61991.0,61984.0,0.16320685]
[1728481310394,0.4708,61993.0,61992.0,0.080716]
[1728481310395,0.30425263,61993.0,61992.0,0.080716]
[1728481310566,0.0464,62000.0,61992.0,0.3608]
[1728481310769,0.0464,62000.0,61998.0,0.080708]
[1728481310770,0.1464,62000.0,61998.0,0.080708]
[1728481310978,0.080706,61999.0,61998.0,0.080708]
[1728481311284,0.190706,61999.0,61998.0,0.28373405]
[1728481311468,0.190706,61999.0,61998.0,0.16076926]
[1728481311775,0.190706,61999.0,61998.0,0.080708]
[1728481312575,0.080708,61998.0,61995.0,0.08006126]
[1728481312817,0.36071,61996.0,61995.0,0.08006126]
[1728481312987,0.47071,61996.0,61995.0,0.20267702]
[1728481313300,0.47071,61996.0,61993.0,0.07980185]
[1728481313301,0.080713,61994.0,61993.0,0.07980185]
[1728481313480,0.190713,61994.0,61993.0,0.07980185]
[1728481313701,0.080719,61989.0,61988.0,0.07980185]
[1728481313888,0.3899337,61989.0,61987.0,0.0798283]
[1728481314098,0.4706527,61989.0,61988.0,0.20269336]
[1728481314266,0.4706527,61989.0,61984.0,0.00241959]
[1728481314267,0.3899337,61989.0,61987.0,0.07982687]
[1728481314581,0.3899337,61989.0,61987.0,0.080722]
[1728481314582,0.080722,61988.0,61987.0,0.080722]
[1728481314767,0.190722,61988.0,61987.0,0.080722]
[1728481314970,0.190722,61988.0,61987.0,0.28290985]
[1728481315275,0.190722,61988.0,61987.0,0.20308298]
[1728481315471,0.11,61988.0,61987.0,0.28289926]
[1728481316073,0.080712,61995.0,61994.0,0.080713]
[1728481316278,0.200712,61995.0,61994.0,0.080713]
[1728481316497,0.12,61995.0,61991.0,0.07980967]
[1728481316775,0.080716,61992.0,61991.0,0.16054063]
[1728481316999,0.190716,61992.0,61991.0,0.20293275]
[1728481317976,0.190716,61992.0,61991.0,0.20893275]
[1728481317977,0.191716,61992.0,61991.0,0.20893275]
[1728481318285,0.111,61992.0,61991.0,0.20893275]
[1728481318469,0.111,61992.0,61991.0,0.28877139]
[1728481318787,0.191716,61992.0,61991.0,0.28877139]
[1728481318975,0.191716,61992.0,61991.0,0.28977139]
[1728481319166,0.191716,61992.0,61991.0,0.16755564]
[1728481319480,0.191716,61992.0,61991.0,0.2110034]
[1728481319777,0.191716,61992.0,61991.0,0.2140034]
[1728481320373,0.191716,61992.0,61991.0,0.1332864]
[1728481320590,0.470716,61992.0,61991.0,0.20616702]
[1728481320778,0.471716,61992.0,61991.0,0.011]
[1728481321089,1.599836,61992.0,61991.0,0.06391661]
[1728481321272,1.690836,61992.0,61991.0,0.008]
[1728481322093,1.690836,61992.0,61991.0,0.05596595]
[1728481322413,0.080719,61989.0,61985.0,0.07988062]
[1728481322587,0.080725,61985.0,61984.0,0.08230021]
[1728481322781,0.190725,61985.0,61984.0,0.20472894]
[1728481323283,0.190725,61985.0,61984.0,0.12484832]
[1728481323485,0.190725,61985.0,61984.0,0.20486532]
[1728481323779,0.080732,61979.0,61969.0,0.0038]
[1728481323998,0.080732,61979.0,61964.0,0.3608]
[1728481323999,0.080747,61968.0,61967.0,0.12809802]
[1728481324286,0.180747,61968.0,61967.0,0.39677817]
[1728481324500,0.180747,61968.0,61967.0,0.22698751]
[1728481324683,0.080751,61965.0,61964.0,0.441552]
[1728481324981,0.30418376,61965.0,61964.0,0.441552]
[1728481325286,0.28,61965.0,61964.0,0.441552]
[1728481325481,0.32034459,61965.0,61964.0,0.441552]
[1728481325682,0.23959359,61965.0,61964.0,0.441552]
[1728481325879,0.28,61970.0,61964.0,0.3608]
[1728481326084,0.080747,61968.0,61964.0,0.3608]
[1728481326276,0.200747,61968.0,61967.0,0.080748]
[1728481326885,0.080755,61962.0,61961.0,0.045]
[1728481327088,0.190755,61962.0,61961.0,0.1419114]
[1728481327398,0.190755,61962.0,61960.0,0.00382074]
[1728481327399,0.080756,61961.0,61960.0,0.00242074]
[1728481327630,0.080765,61954.0,61946.0,0.13189802]
[1728481327906,0.080765,61954.0,61946.0,0.19285242]
[1728481327907,0.28,61947.0,61946.0,0.19285242]
[1728481328099,0.28,61947.0,61946.0,0.22339678]
[1728481328298,0.3608,61955.0,61953.0,0.080766]
[1728481328299,0.080765,61954.0,61953.0,0.080766]
[1728481328680,0.3608,61955.0,61946.0,0.080775]
[1728481328876,0.3608,61955.0,61954.0,0.080765]
[1728481329198,0.3608,61955.0,61954.0,0.080764]
[1728481329199,0.080764,61955.0,61954.0,0.080764]
[1728481329382,0.721564,61955.0,61954.0,0.080764]
[1728481329596,1.82504,61955.0,61952.0,0.06406435]
[1728481329810,1.82504,61955.0,61940.0,0.0469]
[1728481329811,0.080779,61943.0,61940.0,0.00144]
[1728481330005,0.080783,61940.0,61939.0,0.00242157]
[1728481330306,0.31229332,61942.0,61938.0,0.01615]
[1728481330491,0.31229332,61942.0,61931.0,0.080795]
[1728481330492,0.080793,61933.0,61931.0,0.080795]
[1728481330686,0.080793,61933.0,61926.0,0.0038]
[1728481330687,0.28,61931.0,61930.0,0.080796]
[1728481331479,0.28,61931.0,61924.0,0.01615]
[1728481331685,0.080796,61930.0,61924.0,0.01615]
[1728481331878,0.3608,61930.0,61925.0,0.080803]
[1728481332087,0.360802,61926.0,61925.0,0.080803]
[1728481332382,0.080798,61929.0,61927.0,0.080799]
[1728481332592,0.36164,61930.0,61929.0,0.080798]
[1728481332780,0.3668,61930.0,61929.0,0.080798]
[1728481333376,0.3608,61930.0,61929.0,0.080798]
[1728481333691,0.08079,61935.0,61934.0,0.080791]
[1728481333891,0.28,61940.0,61936.0,0.080789]
[1728481334189,0.080787,61937.0,61936.0,0.080789]
[1728481334605,0.3608,61942.0,61939.0,0.080785]
[1728481334788,0.080787,61938.0,61937.0,0.080787]
[1728481335200,0.080789,61936.0,61929.0,0.3608]
[1728481335399,0.721596,61930.0,61924.0,0.01615]
[1728481335594,0.28,61929.0,61924.0,0.01615]
[1728481335787,0.39,61929.0,61924.0,0.01615]
[1728481336087,0.470798,61929.0,61928.0,0.080799]
[1728481336301,0.190798,61929.0,61928.0,0.080799]
[1728481336591,0.3618,61930.0,61928.0,0.28]
[1728481336592,0.001,61930.0,61928.0,0.28]
[1728481336790,0.001,61930.0,61929.0,0.128498]
[1728481337294,0.441588,61937.0,61929.0,0.0477]
[1728481337588,0.080788,61937.0,61936.0,0.080789]
[1728481338491,0.080785,61939.0,61934.0,0.08079]
[1728481338690,0.080788,61937.0,61935.0,0.080789]
[1728481338989,0.080787,61937.0,61936.0,0.080788]
[1728481339192,0.28,61940.0,61932.0,0.3608]
[1728481339398,0.390783,61940.0,61932.0,0.3608]
[1728481339788,0.001,61937.0,61932.0,0.3608]
[1728481340106,0.101,61937.0,61936.0,0.080789]
[1728481340292,0.080786,61938.0,61936.0,0.080789]
[1728481340493,0.080786,61938.0,61932.0,0.3608]
[1728481340494,0.190786,61938.0,61937.0,0.080787]
[1728481340792,0.001,61940.0,61937.0,0.3608]
[1728481340992,0.3608,61944.0,61937.0,0.3608]
[1728481341297,0.3608,61944.0,61943.0,0.080779]
[1728481341500,0.441578,61944.0,61943.0,0.080779]
[1728481341799,0.3608,61944.0,61943.0,0.080779]
[1728481342500,0.080778,61945.0,61943.0,0.3608]
[1728481342697,0.3608,61960.0,61945.0,0.080777]
[1728481342913,0.4808,61960.0,61951.0,0.3608]
[1728481343104,0.080761,61957.0,61951.0,0.3608]
[1728481343393,0.441557,61960.0,61959.0,0.080759]
[1728481343694,0.28,61965.0,61960.0,0.080757]
[1728481343906,0.080751,61966.0,61965.0,0.080749]
[1728481344104,0.3608,61968.0,61967.0,0.080748]
[1728481344395,0.541547,61968.0,61967.0,0.080748]
[1728481344909,0.541547,61968.0,61954.0,0.29615]
[1728481344910,0.080756,61962.0,61960.0,0.080757]
[1728481345226,0.080756,61962.0,61954.0,0.01615]
[1728481345227,0.0468,61981.0,61956.0,0.3608]
[1728481345444,5.97492,62225.0,61956.0,0.3608]
[1728481345663,4e-05,62252.0,62044.0,0.3608]
[1728481345664,0.17729187,62059.0,62044.0,0.3608]
[1728481345811,0.28,62081.0,62059.0,0.080628]
[1728481345995,0.6408,62075.0,62065.0,0.01615]
[1728481346194,0.28,62065.0,62064.0,0.3608]
[1728481346394,1.860621,62065.0,62064.0,0.15209714]
[1728481346620,1.860621,62065.0,62052.0,0.3608]
[1728481346621,3.01336,62065.0,62059.0,0.3608]
[1728481346907,3.01336,62065.0,62052.0,0.3608]
[1728481346908,3.01336,62065.0,62058.0,0.3608]
[1728481346909,0.009,62059.0,62058.0,0.3608]
[1728481347108,0.009,62059.0,62052.0,0.3608]
[1728481347109,0.609,62059.0,62052.0,0.3608]
[1728481347415,0.009,62059.0,62052.0,0.3608]
[1728481347644,0.009,62059.0,62058.0,0.3608]
[1728481347992,2.5924,62059.0,62058.0,0.3608]
[1728481348490,2.5934,62059.0,62058.0,0.3608]
[1728481349100,0.080636,62053.0,62052.0,0.3608]
[1728481349310,0.88228,62053.0,62046.0,0.3608]
[1728481349503,0.080644,62048.0,62046.0,0.3608]
[1728481349747,0.48352,62047.0,62046.0,0.3608]
[1728481350095,1.08173523,62047.0,62046.0,0.3608]
[1728481350409,0.080653,62040.0,62039.0,0.3608]
[1728481351095,1.164213,62040.0,62039.0,0.3608]
[1728481352309,1.173213,62040.0,62039.0,0.3618]
[1728481353103,1.181213,62040.0,62039.0,0.3618]
[1728481354197,2.681213,62040.0,62039.0,0.3618]
[1728481355995,2.781213,62040.0,62039.0,0.3618]
[1728481356507,2.781213,62040.0,62039.0,0.001]
[1728481357030,2.781213,62040.0,62039.0,0.3618]
[1728481357325,1.617,62040.0,62039.0,0.442454]
[1728481359311,1.697653,62040.0,62039.0,0.3618]
[1728481359716,2.781213,62040.0,62039.0,0.3618]
[1728481360214,1.697653,62040.0,62039.0,0.3618]
[1728481361208,2.781213,62040.0,62039.0,0.3618]
[1728481362227,2.781213,62040.0,62026.0,0.0462]
[1728481362228,0.080664,62032.0,62019.0,0.00164]
[1728481362567,0.080699,62005.0,62004.0,0.3608]
[1728481362725,0.190699,62005.0,62004.0,0.3608]
[1728481362903,0.190699,62005.0,61991.0,0.080717]
[1728481362904,0.080716,61992.0,61991.0,0.3608]
[1728481363621,1.580716,61992.0,61991.0,0.3608]
[1728481363920,1.5,61992.0,61991.0,0.871517]
[1728481365705,1.501,61992.0,61991.0,0.872517]
[1728481367208,1.502,61992.0,61991.0,0.872517]
[1728481367914,1.502,61992.0,61991.0,0.442517]
[1728481368309,1.502,61992.0,61991.0,0.445517]
[1728481368310,1.581716,61992.0,61991.0,0.445517]
[1728481368612,1.501,61992.0,61991.0,0.445517]
[1728481369605,1.501,61992.0,61991.0,0.441517]
[1728481369910,1.581716,61992.0,61991.0,0.446517]
[1728481370216,2.012716,61992.0,61991.0,0.3658]
[1728481370407,1.692716,61992.0,61991.0,0.23507742]
[1728481371334,1.66424378,61992.0,61991.0,0.004]
[1728481371545,0.08072,61989.0,61988.0,0.3608]
[1728481371713,0.19072,61989.0,61988.0,0.3608]
[1728481372208,1.69072,61989.0,61988.0,0.3608]
[1728481373213,1.69872,61989.0,61988.0,0.001]
[1728481374409,1.70972,61989.0,61988.0,0.001]
[1728481375009,1.70572,61989.0,61988.0,0.001]
[1728481375212,1.629,61989.0,61986.0,0.3608]
[1728481375416,0.080722,61987.0,61986.0,0.3608]
[1728481375611,1.519,61989.0,61988.0,0.080721]
[1728481375813,0.129,61989.0,61988.0,0.441521]
[1728481376108,0.048,61989.0,61988.0,0.441521]
[1728481377519,0.008,61989.0,61988.0,0.441521]
[1728481377926,0.08071,61997.0,61994.0,0.080713]
[1728481378113,0.18071,61997.0,61996.0,0.44151]
[1728481378303,0.18071,61997.0,61996.0,0.3608]
[1728481379014,0.18071,61997.0,61996.0,0.44151]
[1728481379213,0.1,61997.0,61996.0,0.44151]
[1728481379402,0.180709,61997.0,61996.0,0.44151]
[1728481379606,0.1,61997.0,61996.0,0.44151]
[1728481379815,0.180709,61997.0,61996.0,0.44151]
[1728481380012,0.1,61997.0,61996.0,0.44151]
[1728481380414,0.102,61997.0,61996.0,0.44151]
[1728481380803,0.28,62020.0,61996.0,0.44151]
[1728481381011,0.0167,62031.0,62005.0,0.3608]
[1728481381012,0.841485,62016.0,62005.0,0.3608]
[1728481381211,0.080697,62006.0,62005.0,0.3608]
[1728481381423,0.180697,62006.0,62005.0,0.3608]
[1728481381907,0.080709,61997.0,61990.0,0.080718]
[1728481382210,0.080717,61991.0,61990.0,0.3608]
[1728481382417,0.190717,61991.0,61990.0,0.3608]
[1728481383725,0.190717,61991.0,61990.0,0.441518]
[1728481383914,0.111,61991.0,61990.0,0.3668]
[1728481384216,0.111,61991.0,61990.0,0.447518]
[1728481384420,0.113,61991.0,61990.0,0.441518]
[1728481384625,0.193717,61991.0,61990.0,0.441518]
[1728481384916,0.193717,61991.0,61990.0,0.3608]
[1728481386012,0.116,61991.0,61990.0,0.441518]
[1728481387115,0.195717,61991.0,61990.0,0.3608]
[1728481387317,0.475717,61991.0,61990.0,0.3608]
[1728481387821,0.473717,61991.0,61990.0,0.3608]
[1728481388132,0.080729,61982.0,61981.0,0.3608]
[1728481388327,0.470729,61982.0,61981.0,0.3608]
[1728481388624,0.470729,61982.0,61974.0,0.37694]
[1728481388625,0.080738,61975.0,61974.0,0.37694]
[1728481388824,0.080738,61975.0,61974.0,0.3608]
[1728481388825,0.480738,61975.0,61974.0,0.3608]
[1728481390525,0.12,61975.0,61974.0,0.3608]